[Event "*** Titled Tuesday Blitz"]
[Site "Chess.com"]
[Date "2019.03.05"]
[Round "2"]
[White "Awentrap"]
[Black "gmjlh"]
[Result "1/2-1/2"]
[WhiteElo "2676"]
[BlackElo "2725"]
[TimeControl "180+2"]
[EndTime "13:22:15 PST"]
[Termination "Game drawn by agreement"]

1. e4 {[%clk 0:03:01.9]} 1... c6 {[%clk 0:02:59.8]} 2. Nf3 {[%clk 0:03:01.9]}
2... d5 {[%clk 0:03:01.2]} 3. Nc3 {[%clk 0:03:02.8]} 3... dxe4 {[%clk
0:03:01.8]} 4. Nxe4 {[%clk 0:03:04.7]} 4... Nf6 {[%clk 0:03:03.4]} 5. Qe2 {[%clk
0:03:05.5]} 5... Nxe4 {[%clk 0:03:03.7]} 6. Qxe4 {[%clk 0:03:07.4]} 6... Qa5
{[%clk 0:03:04.9]} 7. Bc4 {[%clk 0:03:00.4]} 7... Bf5 {[%clk 0:03:03.2]} 8. Qf4
{[%clk 0:03:00.4]} 8... e6 {[%clk 0:03:00.3]} 9. c3 {[%clk 0:02:50.7]} 9... Qd8
{[%clk 0:02:44.1]} 10. d4 {[%clk 0:02:28.7]} 10... Bd6 {[%clk 0:02:43.5]} 11.
Qe3 {[%clk 0:02:28.2]} 11... Nd7 {[%clk 0:02:36.5]} 12. O-O {[%clk 0:02:24.9]}
12... O-O {[%clk 0:02:34.3]} 13. Re1 {[%clk 0:02:16.4]} 13... c5 {[%clk
0:02:00.4]} 14. dxc5 {[%clk 0:01:45.5]} 14... Bxc5 {[%clk 0:02:00.4]} 15. Qe2
{[%clk 0:01:46.6]} 15... Nb6 {[%clk 0:01:44.9]} 16. Bg5 {[%clk 0:01:36.3]} 16...
Qc7 {[%clk 0:01:43.1]} 17. Bb3 {[%clk 0:01:25.6]} 17... h6 {[%clk 0:01:40.9]}
18. Bh4 {[%clk 0:01:24.7]} 18... Nd5 {[%clk 0:01:36.1]} 19. Bxd5 {[%clk
0:01:09.7]} 19... exd5 {[%clk 0:01:36.1]} 20. Bg3 {[%clk 0:01:07.7]} 20... Qc6
{[%clk 0:01:31.2]} 21. Qd2 {[%clk 0:00:52.5]} 21... Rad8 {[%clk 0:01:05.8]} 22.
Nd4 {[%clk 0:00:52.2]} 22... Bxd4 {[%clk 0:01:02.3]} 23. Qxd4 {[%clk 0:00:54.1]}
23... a6 {[%clk 0:00:59.7]} 24. Re7 {[%clk 0:00:51.6]} 24... Rfe8 {[%clk
0:00:58.3]} 25. Rae1 {[%clk 0:00:52.5]} 25... Rxe7 {[%clk 0:00:58.8]} 26. Rxe7
{[%clk 0:00:54.4]} 26... Re8 {[%clk 0:00:58.7]} 27. Qe5 {[%clk 0:00:54.1]} 27...
Rxe7 {[%clk 0:00:58.2]} 28. Qxe7 {[%clk 0:00:56]} 28... Qe6 {[%clk 0:00:35]} 29.
Qxe6 {[%clk 0:00:52.8]} 29... Bxe6 {[%clk 0:00:36.9]} 30. a3 {[%clk 0:00:53.3]}
1/2-1/2

[Event "*** Titled Tuesday Blitz"]
[Site "Chess.com"]
[Date "2019.03.05"]
[Round "2"]
[White "cheese111"]
[Black "BIG_Pirate"]
[Result "1-0"]
[WhiteElo "2451"]
[BlackElo "2361"]
[TimeControl "180+2"]
[EndTime "13:22:26 PST"]
[Termination "cheese111 won by resignation"]

1. e4 {[%clk 0:03:01.9]} 1... d5 {[%clk 0:03:00.9]} 2. exd5 {[%clk 0:03:02.4]}
2... Qxd5 {[%clk 0:03:02.8]} 3. Nc3 {[%clk 0:03:02.7]} 3... Qa5 {[%clk
0:03:04.2]} 4. d4 {[%clk 0:03:04.1]} 4... Nf6 {[%clk 0:03:05.5]} 5. Nf3 {[%clk
0:03:05.5]} 5... Bg4 {[%clk 0:03:06.6]} 6. h3 {[%clk 0:03:02.1]} 6... Bh5 {[%clk
0:03:07.7]} 7. g4 {[%clk 0:02:54.4]} 7... Bg6 {[%clk 0:03:08.8]} 8. Ne5 {[%clk
0:02:55.1]} 8... e6 {[%clk 0:03:10.1]} 9. Bg2 {[%clk 0:02:47.4]} 9... c6 {[%clk
0:03:04.2]} 10. h4 {[%clk 0:02:28.1]} 10... Nbd7 {[%clk 0:02:47.2]} 11. Nc4
{[%clk 0:01:09]} 11... Qb4 {[%clk 0:02:47.2]} 12. Qe2 {[%clk 0:01:07.1]} 12...
h5 {[%clk 0:02:17.4]} 13. Bd2 {[%clk 0:00:55.7]} 13... Qe7 {[%clk 0:02:11]} 14.
Bf4 {[%clk 0:00:45.3]} 14... Qd8 {[%clk 0:02:11.9]} 15. g5 {[%clk 0:00:41.3]}
15... Ng8 {[%clk 0:01:58.4]} 16. d5 {[%clk 0:00:33.2]} 16... cxd5 {[%clk
0:01:57.3]} 17. Nxd5 {[%clk 0:00:35.1]} 17... Rc8 {[%clk 0:01:56.5]} 18. O-O-O
{[%clk 0:00:30.9]} 18... b5 {[%clk 0:01:47.1]} 19. Nc7+ {[%clk 0:00:08.4]} 19...
Rxc7 {[%clk 0:01:47.9]} 20. Bxc7 {[%clk 0:00:10.3]} 20... Qxc7 {[%clk
0:01:49.2]} 21. Ne3 {[%clk 0:00:07]} 21... Ne7 {[%clk 0:01:24.1]} 22. Qxb5
{[%clk 0:00:06.1]} 22... Nc8 {[%clk 0:00:57.4]} 23. Rxd7 {[%clk 0:00:05.8]}
23... Qxd7 {[%clk 0:00:53]} 24. Bc6 {[%clk 0:00:07.3]} 24... Nb6 {[%clk
0:00:54.9]} 25. Bxd7+ {[%clk 0:00:08]} 25... Nxd7 {[%clk 0:00:56.8]} 26. Rd1
{[%clk 0:00:09]} 1-0

[Event "*** Titled Tuesday Blitz"]
[Site "Chess.com"]
[Date "2019.03.05"]
[Round "2"]
[White "Korchmar_Vasiliy"]
[Black "JonahWillow"]
[Result "1-0"]
[WhiteElo "2742"]
[BlackElo "2656"]
[TimeControl "180+2"]
[EndTime "13:22:30 PST"]
[Termination "Korchmar_Vasiliy won by resignation"]

1. d4 {[%clk 0:03:01.5]} 1... Nf6 {[%clk 0:03:01.1]} 2. c4 {[%clk 0:03:02.4]}
2... e6 {[%clk 0:03:02.5]} 3. g3 {[%clk 0:03:03.1]} 3... c5 {[%clk 0:03:03.7]}
4. d5 {[%clk 0:03:04.1]} 4... exd5 {[%clk 0:03:05.6]} 5. cxd5 {[%clk 0:03:06]}
5... d6 {[%clk 0:03:07.4]} 6. Nc3 {[%clk 0:03:06.4]} 6... g6 {[%clk 0:03:08.9]}
7. Bg2 {[%clk 0:03:08]} 7... Bg7 {[%clk 0:03:09.8]} 8. Nf3 {[%clk 0:03:09.6]}
8... O-O {[%clk 0:03:10]} 9. O-O {[%clk 0:03:11.1]} 9... a6 {[%clk 0:03:11.6]}
10. a4 {[%clk 0:03:11.4]} 10... Nbd7 {[%clk 0:03:06.5]} 11. Bf4 {[%clk 0:03:11]}
11... Qc7 {[%clk 0:03:07]} 12. Rc1 {[%clk 0:03:05.1]} 12... Nh5 {[%clk
0:03:06.1]} 13. Bg5 {[%clk 0:03:03.6]} 13... Re8 {[%clk 0:03:02.3]} 14. Re1
{[%clk 0:03:02.5]} 14... Rb8 {[%clk 0:02:35.3]} 15. b4 {[%clk 0:03:02.3]} 15...
b6 {[%clk 0:02:17.6]} 16. e4 {[%clk 0:02:13.7]} 16... h6 {[%clk 0:02:11.4]} 17.
Be3 {[%clk 0:02:11.1]} 17... Nhf6 {[%clk 0:01:57.6]} 18. h3 {[%clk 0:01:59.8]}
18... Bb7 {[%clk 0:01:45.6]} 19. Nd2 {[%clk 0:01:41.8]} 19... Qd8 {[%clk
0:01:27.2]} 20. b5 {[%clk 0:01:39.7]} 20... Ne5 {[%clk 0:01:19.5]} 21. Bf1
{[%clk 0:01:35.7]} 21... axb5 {[%clk 0:01:07.6]} 22. Nxb5 {[%clk 0:01:35.7]}
22... Bf8 {[%clk 0:01:00.7]} 23. f4 {[%clk 0:01:34.3]} 23... Ned7 {[%clk
0:01:01.2]} 24. Bg2 {[%clk 0:01:34.9]} 24... Ra8 {[%clk 0:00:58.4]} 25. Qc2
{[%clk 0:01:34.3]} 25... Qb8 {[%clk 0:00:47.5]} 26. Nc4 {[%clk 0:01:32.3]} 26...
Ba6 {[%clk 0:00:48.6]} 27. Rb1 {[%clk 0:01:30.4]} 27... Bxb5 {[%clk 0:00:48.9]}
28. Rxb5 {[%clk 0:01:31.4]} 28... Qa7 {[%clk 0:00:50.3]} 29. Ra1 {[%clk
0:01:15.1]} 29... Nxd5 {[%clk 0:00:45.8]} 30. exd5 {[%clk 0:01:15.9]} 30... Bg7
{[%clk 0:00:30.4]} 31. Ra3 {[%clk 0:01:16.7]} 31... Rxe3 {[%clk 0:00:25.2]} 32.
Nxe3 {[%clk 0:01:15.9]} 32... Bd4 {[%clk 0:00:27.1]} 33. Kh2 {[%clk 0:01:12.4]}
33... Nf6 {[%clk 0:00:22.1]} 34. Nc4 {[%clk 0:01:11.8]} 1-0

[Event "*** Titled Tuesday Blitz"]
[Site "Chess.com"]
[Date "2019.03.05"]
[Round "2"]
[White "LaughingTiger"]
[Black "GremioPrudente"]
[Result "1-0"]
[WhiteElo "2155"]
[BlackElo "2068"]
[TimeControl "180+2"]
[EndTime "13:22:32 PST"]
[Termination "LaughingTiger won on time"]

1. Nf3 {[%clk 0:02:59.3]} 1... d5 {[%clk 0:02:59.3]} 2. e3 {[%clk 0:02:57.8]}
2... Nf6 {[%clk 0:02:57]} 3. c4 {[%clk 0:02:57.6]} 3... e6 {[%clk 0:02:52.9]} 4.
b3 {[%clk 0:02:58.3]} 4... b6 {[%clk 0:02:54.1]} 5. Bb2 {[%clk 0:02:58.8]} 5...
Bb7 {[%clk 0:02:55.7]} 6. Be2 {[%clk 0:03:00.1]} 6... Nbd7 {[%clk 0:02:54.5]} 7.
O-O {[%clk 0:03:00.6]} 7... Be7 {[%clk 0:02:55.1]} 8. d4 {[%clk 0:03:00.4]} 8...
O-O {[%clk 0:02:55.7]} 9. Nbd2 {[%clk 0:02:59.9]} 9... dxc4 {[%clk 0:02:52.9]}
10. Bxc4 {[%clk 0:02:55.7]} 10... Ne4 {[%clk 0:02:42.4]} 11. Nxe4 {[%clk
0:02:50.8]} 11... Bxe4 {[%clk 0:02:42.6]} 12. Nd2 {[%clk 0:02:52.3]} 12... Bd5
{[%clk 0:02:40.2]} 13. e4 {[%clk 0:02:38.5]} 13... Bb7 {[%clk 0:02:29.8]} 14.
Qe2 {[%clk 0:02:33.8]} 14... c6 {[%clk 0:02:23.5]} 15. Rad1 {[%clk 0:02:29.3]}
15... Qc7 {[%clk 0:02:24.4]} 16. f4 {[%clk 0:02:26.5]} 16... Rfe8 {[%clk
0:02:23.2]} 17. Rf3 {[%clk 0:02:26.2]} 17... Rad8 {[%clk 0:02:21.1]} 18. Rdf1
{[%clk 0:02:19.5]} 18... Bb4 {[%clk 0:02:15.6]} 19. Rg3 {[%clk 0:02:18.4]} 19...
Bxd2 {[%clk 0:02:15.4]} 20. Qxd2 {[%clk 0:02:16.3]} 20... Nf6 {[%clk 0:01:51]}
21. Qe2 {[%clk 0:02:12.7]} 21... c5 {[%clk 0:01:48.4]} 22. d5 {[%clk 0:02:13.2]}
22... Qe7 {[%clk 0:01:30.7]} 23. dxe6 {[%clk 0:02:13.2]} 23... fxe6 {[%clk
0:01:31]} 24. f5 {[%clk 0:02:13.3]} 24... Kh8 {[%clk 0:00:52.3]} 25. Bxe6 {[%clk
0:01:51.5]} 25... Rd6 {[%clk 0:00:19.7]} 26. Be5 {[%clk 0:01:38.7]} 26... Rxe6
{[%clk 0:00:19.7]} 27. fxe6 {[%clk 0:01:40.6]} 27... Qxe6 {[%clk 0:00:20.3]} 28.
Bxf6 {[%clk 0:01:41.2]} 28... gxf6 {[%clk 0:00:21.1]} 29. Qg4 {[%clk 0:01:40]}
29... Qxg4 {[%clk 0:00:15.6]} 30. Rxg4 {[%clk 0:01:41.9]} 30... Bxe4 {[%clk
0:00:10.1]} 31. Re1 {[%clk 0:01:38.4]} 31... f5 {[%clk 0:00:10.5]} 32. Rf4
{[%clk 0:01:39]} 32... Rd8 {[%clk 0:00:10.6]} 33. g4 {[%clk 0:01:37.7]} 33...
Rd2 {[%clk 0:00:10.8]} 34. gxf5 {[%clk 0:01:39.2]} 34... Rg2+ {[%clk 0:00:11.4]}
35. Kf1 {[%clk 0:01:40.1]} 35... Rxh2 {[%clk 0:00:04.9]} 36. Rexe4 {[%clk
0:01:39.1]} 36... Rxa2 {[%clk 0:00:04.4]} 37. f6 {[%clk 0:01:40]} 37... Kg8
{[%clk 0:00:03.9]} 38. f7+ {[%clk 0:01:40.5]} 1-0

[Event "*** Titled Tuesday Blitz"]
[Site "Chess.com"]
[Date "2019.03.05"]
[Round "2"]
[White "NIGWAPO"]
[Black "moro182"]
[Result "0-1"]
[WhiteElo "2575"]
[BlackElo "2813"]
[TimeControl "180+2"]
[EndTime "13:22:37 PST"]
[Termination "moro182 won by resignation"]

1. e4 {[%clk 0:03:01.9]} 1... e5 {[%clk 0:03:00.4]} 2. Nf3 {[%clk 0:03:00.1]}
2... Nc6 {[%clk 0:03:00.1]} 3. Bb5 {[%clk 0:02:30.2]} 3... a6 {[%clk 0:03:00]}
4. Ba4 {[%clk 0:02:27.5]} 4... Nf6 {[%clk 0:02:59.3]} 5. O-O {[%clk 0:02:26.2]}
5... b5 {[%clk 0:03:01.2]} 6. Bb3 {[%clk 0:02:16.6]} 6... Bc5 {[%clk 0:03:03.1]}
7. d3 {[%clk 0:01:38.6]} 7... d6 {[%clk 0:03:01.5]} 8. h3 {[%clk 0:01:40.5]}
8... h6 {[%clk 0:03:02.3]} 9. Be3 {[%clk 0:01:41.5]} 9... O-O {[%clk 0:03:01.1]}
10. Nc3 {[%clk 0:01:41.9]} 10... Rb8 {[%clk 0:03:00.9]} 11. Qd2 {[%clk
0:01:40.6]} 11... Be6 {[%clk 0:02:54.8]} 12. Ne2 {[%clk 0:01:41.2]} 12... Qe7
{[%clk 0:02:44.9]} 13. Ng3 {[%clk 0:01:41.8]} 13... Rbd8 {[%clk 0:02:27.6]} 14.
Rfe1 {[%clk 0:01:38.8]} 14... Rfe8 {[%clk 0:02:25.8]} 15. Bxe6 {[%clk
0:01:36.3]} 15... fxe6 {[%clk 0:02:23.3]} 16. Bxc5 {[%clk 0:01:35]} 16... dxc5
{[%clk 0:02:25.2]} 17. a4 {[%clk 0:01:36.2]} 17... b4 {[%clk 0:02:20.5]} 18. b3
{[%clk 0:01:37.2]} 18... Rf8 {[%clk 0:02:18.2]} 19. Nf1 {[%clk 0:01:26.2]} 19...
Nh5 {[%clk 0:02:07.1]} 20. Ne3 {[%clk 0:01:26.3]} 20... Nf4 {[%clk 0:02:06.9]}
21. Nh2 {[%clk 0:01:22.4]} 21... Nd4 {[%clk 0:01:59.1]} 22. Qd1 {[%clk 0:01:21]}
22... h5 {[%clk 0:01:51.6]} 23. Kh1 {[%clk 0:01:13.6]} 23... g6 {[%clk
0:01:50.5]} 24. Rf1 {[%clk 0:01:14]} 24... Qg5 {[%clk 0:01:45.7]} 25. Rc1 {[%clk
0:01:10.4]} 25... Nfe2 {[%clk 0:01:27.5]} 26. Ra1 {[%clk 0:01:03.2]} 26... Rxf2
{[%clk 0:01:24]} 27. Rxf2 {[%clk 0:01:04.1]} 27... Qxe3 {[%clk 0:01:23.6]} 28.
Rxe2 {[%clk 0:00:52.1]} 28... Nxe2 {[%clk 0:01:18.1]} 29. Nf3 {[%clk 0:00:52]}
29... Rf8 {[%clk 0:01:13]} 30. Qe1 {[%clk 0:00:52.7]} 30... Rxf3 {[%clk
0:01:08.3]} 31. gxf3 {[%clk 0:00:53.7]} 31... Qxf3+ {[%clk 0:01:10.2]} 32. Kh2
{[%clk 0:00:55.2]} 32... Nf4 {[%clk 0:00:54.5]} 33. Qg3 {[%clk 0:00:50.4]} 33...
Qe2+ {[%clk 0:00:54]} 34. Kh1 {[%clk 0:00:51.5]} 34... Qxc2 {[%clk 0:00:51.3]}
35. Rf1 {[%clk 0:00:52.2]} 35... Qxd3 {[%clk 0:00:50.2]} 36. Qxd3 {[%clk
0:00:52.1]} 36... Nxd3 {[%clk 0:00:52.1]} 37. Rf6 {[%clk 0:00:53]} 37... Nf4
{[%clk 0:00:44.5]} 0-1

[Event "*** Titled Tuesday Blitz"]
[Site "Chess.com"]
[Date "2019.03.05"]
[Round "2"]
[White "VeraNebolsina"]
[Black "RegZryt"]
[Result "0-1"]
[WhiteElo "2352"]
[BlackElo "2436"]
[TimeControl "180+2"]
[EndTime "13:22:44 PST"]
[Termination "RegZryt won by resignation"]

1. e4 {[%clk 0:03:01.9]} 1... c5 {[%clk 0:03:00.2]} 2. Nc3 {[%clk 0:03:02.2]}
2... Nc6 {[%clk 0:03:00.8]} 3. Bb5 {[%clk 0:03:00.8]} 3... Nd4 {[%clk 0:03:01]}
4. Nf3 {[%clk 0:03:00.9]} 4... Nxb5 {[%clk 0:03:01.3]} 5. Nxb5 {[%clk
0:03:01.5]} 5... a6 {[%clk 0:03:01.1]} 6. Nc3 {[%clk 0:03:02.1]} 6... d6 {[%clk
0:03:01]} 7. d4 {[%clk 0:03:02.1]} 7... cxd4 {[%clk 0:03:01.5]} 8. Qxd4 {[%clk
0:03:03]} 8... Nf6 {[%clk 0:02:46.6]} 9. Bg5 {[%clk 0:02:19.6]} 9... h6 {[%clk
0:02:47.1]} 10. Bxf6 {[%clk 0:02:19.8]} 10... gxf6 {[%clk 0:02:49]} 11. Nd5
{[%clk 0:02:16.2]} 11... Be6 {[%clk 0:02:47.6]} 12. O-O-O {[%clk 0:02:06.9]}
12... Rc8 {[%clk 0:02:48]} 13. Kb1 {[%clk 0:01:59.1]} 13... h5 {[%clk
0:02:49.1]} 14. Nf4 {[%clk 0:01:18.1]} 14... Qa5 {[%clk 0:02:44.6]} 15. Nxe6
{[%clk 0:01:16.3]} 15... fxe6 {[%clk 0:02:46.5]} 16. e5 {[%clk 0:01:09.6]} 16...
fxe5 {[%clk 0:02:41.2]} 17. Qe4 {[%clk 0:01:10.9]} 17... Rg8 {[%clk 0:02:18.2]}
18. Qh7 {[%clk 0:01:07.4]} 18... Rxg2 {[%clk 0:02:11.6]} 19. Qxh5+ {[%clk
0:01:08]} 19... Kd8 {[%clk 0:02:12.9]} 20. Nxe5 {[%clk 0:01:00]} 20... Kc7
{[%clk 0:02:14]} 21. Qf3 {[%clk 0:00:51.6]} 21... Rg5 {[%clk 0:02:08.7]} 22. Nc4
{[%clk 0:00:50.5]} 22... Qc5 {[%clk 0:02:06.4]} 23. Ne3 {[%clk 0:00:49.6]} 23...
Bg7 {[%clk 0:02:04.3]} 24. c3 {[%clk 0:00:44.4]} 24... Kb8 {[%clk 0:02:02.3]}
25. h4 {[%clk 0:00:43.5]} 25... Rh5 {[%clk 0:01:45.7]} 26. Rhg1 {[%clk
0:00:39.1]} 26... Bf6 {[%clk 0:01:45.5]} 27. Rg4 {[%clk 0:00:23.9]} 27... Rxh4
{[%clk 0:01:42.6]} 28. Rxh4 {[%clk 0:00:24.9]} 28... Bxh4 {[%clk 0:01:44.5]} 29.
Rh1 {[%clk 0:00:21]} 29... Bf6 {[%clk 0:01:43.2]} 30. Rh5 {[%clk 0:00:21.7]}
30... Qc6 {[%clk 0:01:42.5]} 31. Qg4 {[%clk 0:00:20.8]} 31... d5 {[%clk
0:01:20.1]} 32. Nc2 {[%clk 0:00:21.5]} 32... e5 {[%clk 0:01:08.5]} 33. Nb4
{[%clk 0:00:21.6]} 33... Qd6 {[%clk 0:01:08.1]} 34. Qf3 {[%clk 0:00:19.4]} 34...
d4 {[%clk 0:01:08]} 35. cxd4 {[%clk 0:00:18.6]} 35... Qxb4 {[%clk 0:01:07.4]}
0-1

[Event "*** Titled Tuesday Blitz"]
[Site "Chess.com"]
[Date "2019.03.05"]
[Round "2"]
[White "Karina_Oparina"]
[Black "Grootneus"]
[Result "0-1"]
[WhiteElo "2171"]
[BlackElo "2188"]
[TimeControl "180+2"]
[EndTime "13:22:52 PST"]
[Termination "Grootneus won by resignation"]

1. Nf3 {[%clk 0:02:59.8]} 1... c5 {[%clk 0:02:58.3]} 2. g3 {[%clk 0:03:00]} 2...
Nc6 {[%clk 0:02:58.1]} 3. Bg2 {[%clk 0:03:00.1]} 3... e5 {[%clk 0:02:59.5]} 4.
c4 {[%clk 0:02:59.3]} 4... Nf6 {[%clk 0:02:59.1]} 5. d3 {[%clk 0:02:56.8]} 5...
d5 {[%clk 0:02:59.9]} 6. cxd5 {[%clk 0:02:57.1]} 6... Nxd5 {[%clk 0:03:01.8]} 7.
O-O {[%clk 0:02:57]} 7... Be7 {[%clk 0:03:01.8]} 8. Nc3 {[%clk 0:02:53.7]} 8...
Nc7 {[%clk 0:03:02.6]} 9. Rb1 {[%clk 0:02:42.8]} 9... O-O {[%clk 0:03:02.2]} 10.
a3 {[%clk 0:02:43.1]} 10... f6 {[%clk 0:03:00.6]} 11. Nd2 {[%clk 0:01:45.3]}
11... Be6 {[%clk 0:02:52.7]} 12. Qa4 {[%clk 0:01:31.8]} 12... Nd5 {[%clk
0:02:50.3]} 13. Nxd5 {[%clk 0:01:29.5]} 13... Bxd5 {[%clk 0:02:51.1]} 14. Bxd5+
{[%clk 0:01:29.3]} 14... Qxd5 {[%clk 0:02:52.1]} 15. Qc4 {[%clk 0:01:30.3]}
15... Qxc4 {[%clk 0:02:53.5]} 16. Nxc4 {[%clk 0:01:28.4]} 16... b5 {[%clk
0:02:51.5]} 17. Ne3 {[%clk 0:01:26.4]} 17... Nd4 {[%clk 0:02:52.1]} 18. Re1
{[%clk 0:01:26.5]} 18... Rac8 {[%clk 0:02:51]} 19. Bd2 {[%clk 0:01:21]} 19...
Rfd8 {[%clk 0:02:36.1]} 20. b3 {[%clk 0:01:17.4]} 20... Rd6 {[%clk 0:02:14.5]}
21. Kf1 {[%clk 0:01:16.5]} 21... Ra6 {[%clk 0:02:15.2]} 22. Nd5 {[%clk 0:00:54]}
22... Kf7 {[%clk 0:02:09.9]} 23. a4 {[%clk 0:00:46.4]} 23... Rd8 {[%clk
0:01:48.2]} 24. axb5 {[%clk 0:00:44.7]} 24... Ra2 {[%clk 0:01:42.3]} 25. Nxe7
{[%clk 0:00:39.6]} 25... Kxe7 {[%clk 0:01:44.2]} 26. Be3 {[%clk 0:00:34.9]}
26... Rb8 {[%clk 0:01:42.2]} 27. b4 {[%clk 0:00:25.4]} 27... Nc2 {[%clk
0:01:26.1]} 28. Bxc5+ {[%clk 0:00:24.6]} 28... Ke6 {[%clk 0:01:27.1]} 29. Rec1
{[%clk 0:00:24]} 29... Rxb5 {[%clk 0:01:26.8]} 30. Rb3 {[%clk 0:00:21.4]} 30...
a5 {[%clk 0:01:27.5]} 31. Rc3 {[%clk 0:00:19.3]} 31... Nxb4 {[%clk 0:01:26.8]}
32. Bxb4 {[%clk 0:00:18.9]} 32... axb4 {[%clk 0:01:28.1]} 33. Rc6+ {[%clk
0:00:18.5]} 33... Kd5 {[%clk 0:01:27.9]} 34. Rc8 {[%clk 0:00:17.2]} 34... b3
{[%clk 0:01:25]} 35. Rd8+ {[%clk 0:00:18.1]} 35... Ke6 {[%clk 0:01:25.7]} 36. e4
{[%clk 0:00:04.9]} 36... b2 {[%clk 0:01:24.6]} 0-1

[Event "*** Titled Tuesday Blitz"]
[Site "Chess.com"]
[Date "2019.03.05"]
[Round "2"]
[White "Keaton87"]
[Black "dreamist"]
[Result "0-1"]
[WhiteElo "2550"]
[BlackElo "2725"]
[TimeControl "180+2"]
[EndTime "13:23:03 PST"]
[Termination "dreamist won by resignation"]

1. Nf3 {[%clk 0:03:01.9]} 1... c5 {[%clk 0:03:00.1]} 2. e4 {[%clk 0:03:02.4]}
2... d6 {[%clk 0:03:00.6]} 3. d4 {[%clk 0:03:03.4]} 3... Nf6 {[%clk 0:03:01.5]}
4. Nc3 {[%clk 0:03:04.3]} 4... cxd4 {[%clk 0:03:02.4]} 5. Nxd4 {[%clk
0:03:06.2]} 5... a6 {[%clk 0:03:03.6]} 6. Bg5 {[%clk 0:03:07]} 6... Nbd7 {[%clk
0:03:04]} 7. f4 {[%clk 0:03:07.2]} 7... Qc7 {[%clk 0:02:56.4]} 8. Qe2 {[%clk
0:03:07.9]} 8... e6 {[%clk 0:02:31]} 9. O-O-O {[%clk 0:03:05.6]} 9... b5 {[%clk
0:02:25.9]} 10. g4 {[%clk 0:03:01.8]} 10... Bb7 {[%clk 0:02:26.3]} 11. Bg2
{[%clk 0:03:02.4]} 11... Rc8 {[%clk 0:02:11.3]} 12. Rhe1 {[%clk 0:02:57.1]}
12... Be7 {[%clk 0:02:07.4]} 13. Nd5 {[%clk 0:02:51.4]} 13... exd5 {[%clk
0:02:05]} 14. exd5 {[%clk 0:02:52.7]} 14... O-O {[%clk 0:01:58.5]} 15. Qxe7
{[%clk 0:02:06.7]} 15... Rfe8 {[%clk 0:01:58.1]} 16. Bxf6 {[%clk 0:02:07.7]}
16... Rxe7 {[%clk 0:01:58.1]} 17. Bxe7 {[%clk 0:02:08.4]} 17... Nb6 {[%clk
0:01:55.4]} 18. Nc6 {[%clk 0:02:08]} 18... Nxd5 {[%clk 0:01:47.6]} 19. Bxd5
{[%clk 0:01:22.5]} 19... Bxc6 {[%clk 0:01:48.4]} 20. Bxd6 {[%clk 0:01:23.8]}
20... Qb6 {[%clk 0:01:48.9]} 21. Bb3 {[%clk 0:01:20.3]} 21... Bf3 {[%clk
0:01:45.4]} 22. Re7 {[%clk 0:00:42]} 22... Bxd1 {[%clk 0:01:38.3]} 23. Rxf7
{[%clk 0:00:41.6]} 23... Qe3+ {[%clk 0:00:54.7]} 24. Kxd1 {[%clk 0:00:41.5]}
24... Kh8 {[%clk 0:00:54.2]} 25. Rd7 {[%clk 0:00:21.9]} 25... Qf3+ {[%clk
0:00:45]} 26. Kd2 {[%clk 0:00:22.5]} 26... Qxg4 {[%clk 0:00:43.6]} 27. Ra7
{[%clk 0:00:05.6]} 27... Qg2+ {[%clk 0:00:42.7]} 28. Kd3 {[%clk 0:00:04.8]}
28... Qf3+ {[%clk 0:00:43.4]} 29. Kd2 {[%clk 0:00:03.3]} 29... Qf2+ {[%clk
0:00:44.8]} 0-1

[Event "*** Titled Tuesday Blitz"]
[Site "Chess.com"]
[Date "2019.03.05"]
[Round "2"]
[White "Hongjin"]
[Black "mlchen"]
[Result "1-0"]
[WhiteElo "2529"]
[BlackElo "2426"]
[TimeControl "180+2"]
[EndTime "13:23:11 PST"]
[Termination "Hongjin won by resignation"]

1. c4 {[%clk 0:03:01.9]} 1... e5 {[%clk 0:03:00.7]} 2. Nc3 {[%clk 0:03:01.6]}
2... Nf6 {[%clk 0:03:01.4]} 3. e3 {[%clk 0:03:01.3]} 3... d5 {[%clk 0:02:58.1]}
4. cxd5 {[%clk 0:02:59.7]} 4... Nxd5 {[%clk 0:02:58.9]} 5. Nf3 {[%clk
0:03:01.4]} 5... Nxc3 {[%clk 0:02:39.9]} 6. bxc3 {[%clk 0:03:01.2]} 6... Bd6
{[%clk 0:02:40]} 7. d4 {[%clk 0:03:02.1]} 7... exd4 {[%clk 0:02:37.3]} 8. cxd4
{[%clk 0:03:00.5]} 8... O-O {[%clk 0:02:38.4]} 9. Bd3 {[%clk 0:03:01.8]} 9... c5
{[%clk 0:02:13.5]} 10. O-O {[%clk 0:02:59.3]} 10... cxd4 {[%clk 0:02:12.7]} 11.
Nxd4 {[%clk 0:03:01.2]} 11... Nd7 {[%clk 0:02:02.3]} 12. Nf5 {[%clk 0:02:35.4]}
12... Be5 {[%clk 0:01:58.9]} 13. Rb1 {[%clk 0:02:04.4]} 13... Nc5 {[%clk
0:01:42.6]} 14. Bc2 {[%clk 0:02:05.2]} 14... Qf6 {[%clk 0:01:42.4]} 15. Ng3
{[%clk 0:01:50.1]} 15... Rd8 {[%clk 0:01:41.1]} 16. Qe2 {[%clk 0:01:37.3]} 16...
Be6 {[%clk 0:01:38.8]} 17. Ba3 {[%clk 0:01:35.2]} 17... Rac8 {[%clk 0:01:29.1]}
18. Bxc5 {[%clk 0:01:33.4]} 18... Rxc5 {[%clk 0:01:26.8]} 19. Ne4 {[%clk
0:01:29.7]} 19... Qh6 {[%clk 0:01:26.2]} 20. f4 {[%clk 0:01:27.7]} 20... Bc4
{[%clk 0:01:15.7]} 21. Qf2 {[%clk 0:01:06.6]} 21... Bxf1 {[%clk 0:00:53.3]} 22.
Nxc5 {[%clk 0:01:04.6]} 22... Bxg2 {[%clk 0:00:21.4]} 23. Qxg2 {[%clk
0:00:47.3]} 23... Bxf4 {[%clk 0:00:17.3]} 24. exf4 {[%clk 0:00:44.4]} 24... Qxf4
{[%clk 0:00:18.6]} 25. Nd3 {[%clk 0:00:42.6]} 25... Qe3+ {[%clk 0:00:18.9]} 26.
Kh1 {[%clk 0:00:40.4]} 26... b6 {[%clk 0:00:20.3]} 27. Re1 {[%clk 0:00:40.3]}
27... Qd4 {[%clk 0:00:21]} 28. Qe4 {[%clk 0:00:39.4]} 28... Qd7 {[%clk
0:00:21.3]} 29. Ne5 {[%clk 0:00:39.7]} 29... Qh3 {[%clk 0:00:22]} 30. Nxf7
{[%clk 0:00:26.6]} 30... Kxf7 {[%clk 0:00:09.7]} 31. Qe7+ {[%clk 0:00:25.9]}
31... Kg8 {[%clk 0:00:08.3]} 32. Qxd8+ {[%clk 0:00:26.9]} 32... Kf7 {[%clk
0:00:09.9]} 33. Qe7+ {[%clk 0:00:28.1]} 1-0